fUST/lending_fUST_20250723
["ID","MTS","AMOUNT","RATE_DAILY","PERIOD"]
[374123054,1753213856638,-326.9,0.00023561,2]
[374123055,1753213856647,-326.9,0.00023561,2]
[374123056,1753213856656,-326.9,0.00023561,2]
[374123057,1753213856666,-326.9,0.00023561,2]
[374123058,1753213856675,-326.9,0.00023561,2]
[374123059,1753213856684,-326.9,0.00023561,2]
[374123060,1753213856693,-326.9,0.00023561,2]
[374123061,1753213856702,-326.9,0.00023561,2]
[374123062,1753213856712,-326.9,0.00023561,2]
[374123063,1753213856721,-326.9,0.00023561,2]
[374123064,1753213856730,-326.9,0.00023561,2]
[374123065,1753213856740,-326.9,0.00023561,2]
[374123066,1753213856749,-326.9,0.00023561,2]
[374123067,1753213856758,-326.9,0.00023561,2]
[374123068,1753213856767,-326.9,0.00023561,2]
[374123069,1753213856776,-326.9,0.00023561,2]
[374123070,1753213856785,-326.9,0.00023561,2]
[374123071,1753213856794,-326.9,0.00023561,2]
[374123072,1753213856803,-326.9,0.00023561,2]
[374123073,1753213856813,-326.9,0.00023561,2]
[374123074,1753213856822,-326.9,0.00023561,2]
[374123075,1753213856831,-327.10009061,0.00023561,2]
[374123076,1753213856840,-600.0,0.00023579,2]
[374123077,1753213856851,-22163.0,0.000236,2]
[374123078,1753213856860,-500.0,0.00023671,2]
[374123079,1753213856870,-457.0,0.00023671,2]
[374123080,1753213856881,-1836.83,0.000237,7]
[374123081,1753213856890,-600.0,0.00023706,2]
[374123082,1753213856901,-800.0,0.00023712,2]
[374123083,1753213856915,-2980.03897535,0.00023728,9]
[374123084,1753213856924,-800.0,0.00023736,2]
[374123085,1753213856933,-500.0,0.00023771,2]
[374123086,1753213856942,-600.0,0.00023787,2]
[374123087,1753213856952,-277.5,0.000238,7]
[374123088,1753213856962,-259.195109,0.00023811,7]
[374123089,1753213856972,-151.0,0.00023811,7]
[374123090,1753213856982,-600.0,0.0002383,2]
[374123091,1753213856992,-600.0,0.00023861,2]
[374123092,1753213857001,-500.0,0.00023876,2]
[374123093,1753213857011,-2357.2772953,0.000239,2]
[374123094,1753213857020,-800.0,0.00023937,2]
[374123095,1753213857029,-500.0,0.00023945,2]
[374123096,1753213857039,-457.0,0.00023945,2]
[374123097,1753213857047,-1000.0,0.00023976,2]
[374123098,1753213857056,-1000.0,0.0002399,2]
[374123099,1753213857065,-99386.29361592,0.00024,2]
[374123100,1753213857075,-155.80101223,0.00024,14]
[374123101,1753213857084,-2980.03897535,0.00024038,10]
[374123102,1753213857093,-151.0,0.000241,9]
[374123103,1753213857102,-500.0,0.0002413,2]
[374123104,1753213857112,-2092.87,0.00024142,2]
[374123105,1753213857122,-239.84119403,0.00024168,2]
[374123106,1753213857132,-303.00000303,0.00024188,12]
[374123107,1753213857142,-844.62460088,0.00024188,12]
[374123108,1753213857151,-500.0,0.00024219,2]
[374123109,1753213857161,-457.0,0.00024219,2]
[374123110,1753213857171,-500.0,0.00024224,2]
[374123111,1753213857180,-800.0,0.00024229,2]
[374123112,1753213857189,-367.28424548,0.00024265,2]
[374123113,1753213857199,-971.38084335,0.00024313,2]
[374123114,1753213857209,-156.507458,0.00024315,2]
[374123115,1753213857218,-800.0,0.00024328,2]
[374123116,1753213857227,-153.0,0.00024329,2]
[374123117,1753213857236,-153.0,0.00024329,2]
[374123118,1753213857246,-153.0,0.00024329,2]
[374123119,1753213857256,-153.0,0.00024329,2]
[374123120,1753213857265,-153.0,0.00024329,2]
[374123121,1753213857275,-153.0,0.00024329,2]
[374123122,1753213857285,-153.0,0.00024329,2]
[374123123,1753213857294,-153.0,0.00024329,2]
[374123124,1753213857304,-153.0,0.00024329,2]
[374123125,1753213857313,-153.0,0.00024329,2]
[374123126,1753213857324,-153.0,0.00024329,2]
[374123127,1753213857333,-2980.03897535,0.00024348,11]
[374123128,1753213857344,-153.0,0.00024356,2]
[374123129,1753213857353,-153.0,0.00024356,2]
[374123130,1753213857362,-153.0,0.00024356,2]
[374123131,1753213857372,-153.0,0.00024356,2]
[374123132,1753213857382,-153.0,0.00024356,2]
[374123133,1753213857391,-153.0,0.00024356,2]
[374123134,1753213857473,-153.0,0.00024356,2]
[374123135,1753213857491,-153.0,0.00024356,2]
[374123136,1753213857500,-26570.9385384,0.00024398,2]
[374123137,1753213857510,-800.0,0.00024416,2]
[374123138,1753213857520,-600.0,0.0002446,2]
[374123139,1753213857529,-500.0,0.00024493,2]
[374123140,1753213857539,-457.0,0.00024493,2]
[374123141,1753213857548,-165.53,0.000245,7]
[374123142,1753213857558,-185.80067628,0.000245,2]
[374123143,1753213857568,-1001.37064921,0.000245,3]
[374123144,1753213857578,-3314.55871941,0.000245,5]
[374123145,1753213857593,-508.32194537,0.00024557,2]
[374123146,1753213857603,-1000.0,0.00024557,2]
[374123147,1753213857613,-500.0,0.00024615,2]
[374123148,1753213857622,-1000.0,0.00024616,2]
[374123149,1753213857632,-58470.34846006,0.0002465,2]
[374123150,1753213857641,-151.0,0.0002465,7]
[374123151,1753213857650,-224.543395,0.0002465,7]
[374123152,1753213857660,-151.0,0.0002465,7]
[374123153,1753213857671,-224.543395,0.0002465,7]
[374123154,1753213857680,-151.0,0.0002465,7]
[374123155,1753213857690,-151.0,0.0002465,7]
[374123156,1753213857700,-151.465729,0.0002465,7]
[374123157,1753213857711,-151.0,0.0002465,7]
[374123158,1753213857721,-151.0,0.0002465,7]
[374123159,1753213857731,-151.0,0.0002465,7]
[374123160,1753213857740,-151.0,0.0002465,7]
[374123161,1753213857749,-151.0,0.0002465,7]
[374123162,1753213857759,-151.0,0.0002465,2]
[374123163,1753213857768,-460.0,0.00024657,2]
[374123164,1753213857778,-460.0,0.00024657,2]
[374123165,1753213857787,-312.04772096,0.00024657,2]
[374123166,1753213857796,-186.0760109,0.00024658,2]
[374123167,1753213857806,-500.0,0.00024658,2]
[374123168,1753213857815,-151.0,0.00024658,2]
[374123169,1753213857825,-477.0,0.00024658,2]
[374123170,1753213857834,-2980.03897535,0.00024659,11]
[374123171,1753213857843,-156.507458,0.00024758,11]
[374123172,1753213857853,-500.0,0.00024767,2]
[374123173,1753213857863,-457.0,0.00024767,2]
[374123174,1753213857873,-156.507458,0.0002478,11]
[374123175,1753213857882,-3000.0,0.000248,30]
[374123176,1753213857891,-3953.64712961,0.000248,2]
[374123177,1753213857901,-17141.4255052,0.000248,2]
[374123178,1753213857914,-800.0,0.00024809,2]
[374123179,1753213857923,-3000.0,0.0002481,30]
[374123180,1753213857933,-151.0,0.0002481,7]
[374123181,1753213857942,-151.0,0.0002481,7]
[374123182,1753213857953,-151.0,0.0002481,7]
[374123183,1753213857962,-151.0,0.0002481,7]
[374123184,1753213857972,-939.815287,0.0002481,7]
[374123185,1753213857982,-939.815287,0.0002481,7]
[374123186,1753213857991,-3000.0,0.0002482,30]
[374123187,1753213858000,-3000.0,0.0002483,30]
[374123188,1753213858010,-3000.0,0.0002484,30]
[374123189,1753213858019,-3000.0,0.0002485,30]
[374123190,1753213858029,-151.0,0.0002485,7]
[374123191,1753213858038,-154.622469,0.0002485,7]
[374123192,1753213858047,-154.622469,0.0002485,7]
[374123193,1753213858057,-3000.0,0.0002486,30]
[374123194,1753213858066,-867.544735,0.0002486,7]
[374123195,1753213858076,-867.544735,0.0002486,7]
[374123196,1753213858086,-3000.0,0.0002487,30]
[374123197,1753213858095,-3000.0,0.0002488,30]
[374123198,1753213858105,-3000.0,0.0002489,30]
[374123199,1753213858114,-3000.0,0.000249,30]
[374123200,1753213858123,-1009.87,0.000249,2]
[374123201,1753213858132,-2797.9053773,0.000249,2]
[374123202,1753213858141,-151.0,0.000249,7]
[374123203,1753213858150,-268.312637,0.000249,7]
[374123204,1753213858159,-22163.0,0.000249,2]
[374123205,1753213858169,-151.0,0.000249,7]
[374123206,1753213858178,-151.0,0.000249,7]
[374123207,1753213858187,-151.0,0.000249,7]
[374123208,1753213858197,-151.0,0.000249,7]
[374123209,1753213858206,-151.0,0.000249,7]
[374123210,1753213858216,-151.0,0.000249,7]
[374123211,1753213858225,-151.0,0.000249,7]
[374123212,1753213858234,-151.0,0.000249,7]
[374123213,1753213858243,-151.0,0.000249,7]
[374123214,1753213858253,-151.0,0.000249,7]
[374123215,1753213858261,-151.0,0.000249,7]
[374123216,1753213858271,-197.268608,0.000249,7]
[374123217,1753213858280,-197.268608,0.000249,7]
[374123218,1753213858289,-151.0,0.000249,7]
[374123219,1753213858298,-152.029843,0.000249,7]
[374123220,1753213858308,-151.0,0.000249,7]
[374123221,1753213858318,-151.0,0.000249,7]
[374123222,1753213858327,-670.859317,0.000249,7]
[374123223,1753213858337,-151.0,0.000249,7]
[374123224,1753213858356,-151.0,0.000249,7]
[374123225,1753213858365,-670.859317,0.000249,7]
[374123226,1753213858375,-151.0,0.000249,7]
[374123227,1753213858384,-170.513799,0.000249,7]
[374123228,1753213858394,-151.0,0.000249,7]
[374123229,1753213858403,-151.0,0.000249,7]
[374123230,1753213858413,-151.0,0.000249,7]
[374123231,1753213858423,-151.0,0.000249,7]
[374123232,1753213858433,-151.0,0.000249,7]
[374123233,1753213858443,-154.622469,0.000249,7]
[374123234,1753213858452,-154.622469,0.000249,7]
[374123235,1753213858463,-181.039421,0.000249,7]
[374123236,1753213858473,-181.039421,0.000249,7]
[374123237,1753213858482,-151.0,0.000249,7]
[374123238,1753213858491,-224.543395,0.000249,7]
[374123239,1753213858500,-151.0,0.000249,7]
[374123240,1753213858510,-224.543395,0.000249,7]
[374123241,1753213858519,-151.0,0.000249,7]
[374123242,1753213858528,-151.0,0.000249,7]
[374123243,1753213858538,-939.815287,0.000249,7]
[374123244,1753213858548,-939.815287,0.000249,7]
[374123245,1753213858557,-151.0,0.000249,7]
[374123246,1753213858566,-867.544735,0.000249,7]
[374123247,1753213858575,-867.544735,0.000249,7]
[374123248,1753213858586,-151.0,0.000249,7]
[374123249,1753213858598,-151.0,0.000249,7]
[374123250,1753213858607,-151.0,0.000249,7]
[374123251,1753213858616,-151.0,0.000249,7]
[374123252,1753213858625,-151.0,0.000249,7]
[374123253,1753213858635,-151.0,0.000249,2]
[374123254,1753213858646,-3000.0,0.0002491,30]
[374123255,1753213858655,-3000.0,0.0002492,30]
[374123256,1753213858666,-3000.0,0.0002493,30]
[374123257,1753213858675,-220.02706467,0.00024932,2]
[374123258,1753213858685,-477.0,0.00024932,2]
[374123259,1753213858695,-3078.645577,0.0002494,30]
[374123260,1753213858704,-2980.03897535,0.00024969,12]
[374123261,1753213858714,-800.0,0.00024987,2]
[374123262,1753213858724,-1836.83,0.00025,7]
[374123263,1753213858734,-526.07605158,0.00025,30]
[374123264,1753213858744,-1000.0,0.00025018,2]
[374123265,1753213858754,-182.14986764,0.00025039,2]
[374123266,1753213858764,-500.0,0.00025041,2]
[374123267,1753213858773,-457.0,0.00025041,2]
[374123268,1753213858782,-2200.0,0.00025082,2]
[374123269,1753213858791,-500.31,0.00025082,2]
[374123270,1753213858800,-156.507458,0.00025098,3]
[374123271,1753213858810,-156.507458,0.00025098,32]
[374123272,1753213858819,-2000.0,0.000251,2]
[374123273,1753213858829,-156.507458,0.000251,32]
[374123274,1753213858838,-151.0,0.00025116,7]
[374123275,1753213858848,-151.0,0.00025116,7]
[374123276,1753213858857,-151.0,0.00025116,7]
[374123277,1753213858866,-222.791333,0.00025118,7]
[374123278,1753213858876,-151.0,0.00025118,7]
[374123279,1753213858885,-151.0,0.00025118,7]
[374123280,1753213858895,-204.055,0.00025119,30]
[374123281,1753213858906,-151.0,0.00025119,7]
[374123282,1753213858917,-151.0,0.00025119,7]
[374123283,1753213858926,-151.0,0.00025119,7]
[374123284,1753213858936,-223.618976,0.00025119,7]
[374123285,1753213858946,-151.0,0.00025119,7]
[374123286,1753213858955,-151.0,0.00025119,7]
[374123287,1753213858968,-151.0,0.00025119,7]
[374123288,1753213858979,-151.0,0.00025119,7]
[374123289,1753213858988,-151.0,0.00025119,7]
[374123290,1753213858998,-151.0,0.00025119,7]
[374123291,1753213859007,-151.0,0.00025119,7]
[374123292,1753213859016,-151.0,0.00025119,7]
[374123293,1753213859026,-228.83634,0.00025119,7]
[374123294,1753213859035,-153.415385,0.00025119,7]
[374123295,1753213859045,-152.0,0.00025119,3]
[374123296,1753213859055,-152.0,0.00025119,3]
[374123297,1753213859065,-152.0,0.00025119,3]
[374123298,1753213859075,-152.0,0.00025119,3]
[374123299,1753213859085,-152.0,0.00025119,3]
[374123300,1753213859095,-152.0,0.00025119,3]
[374123301,1753213859105,-152.0,0.00025119,3]
[374123302,1753213859115,-152.0,0.00025119,3]
[374123303,1753213859124,-152.0,0.00025119,3]
[374123304,1753213859133,-152.0,0.00025119,3]
[374123305,1753213859143,-152.0,0.00025119,3]
[374123306,1753213859152,-241.66075602,0.00025119,3]
[374123307,1753213859162,-152.0,0.00025119,3]
[374123308,1753213859171,-152.0,0.00025119,3]
[374123309,1753213859181,-152.0,0.00025119,3]
[374123310,1753213859190,-152.0,0.00025119,3]
[374123311,1753213859199,-152.0,0.00025119,3]
[374123312,1753213859209,-152.0,0.00025119,3]
[374123313,1753213859220,-152.0,0.00025119,3]
[374123314,1753213859229,-152.0,0.00025119,3]
[374123315,1753213859239,-152.0,0.00025119,3]
[374123316,1753213859248,-152.0,0.00025119,3]
[374123317,1753213859257,-152.0,0.00025119,3]
[374123318,1753213859267,-152.0,0.00025119,3]
[374123319,1753213859276,-152.0,0.00025119,3]
[374123320,1753213859285,-152.0,0.00025119,3]
[374123321,1753213859294,-152.0,0.00025119,3]
[374123322,1753213859378,-152.0,0.00025119,3]
[374123323,1753213859387,-152.0,0.00025119,3]
[374123324,1753213859396,-152.0,0.00025119,3]
[374123325,1753213859406,-152.0,0.00025119,3]
[374123326,1753213859415,-152.0,0.00025119,3]
[374123327,1753213859424,-152.0,0.00025119,3]
[374123328,1753213859433,-152.0,0.00025119,3]
[374123329,1753213859443,-152.0,0.00025119,3]
[374123330,1753213859453,-152.0,0.00025119,3]
[374123331,1753213859465,-152.0,0.00025119,3]
[374123332,1753213859474,-152.0,0.00025119,3]
[374123333,1753213859483,-152.0,0.00025119,3]
[374123334,1753213859492,-152.0,0.00025119,3]
[374123335,1753213859502,-152.0,0.00025119,3]
[374123336,1753213859511,-152.0,0.00025119,3]
[374123337,1753213859520,-152.0,0.00025119,3]
[374123338,1753213859530,-152.0,0.00025119,3]
[374123339,1753213859539,-152.0,0.00025119,3]
[374123340,1753213859548,-152.0,0.00025119,3]
[374123341,1753213859557,-152.0,0.00025119,3]
[374123342,1753213859567,-152.0,0.00025119,3]
[374123343,1753213859576,-152.0,0.00025119,3]
[374123344,1753213859585,-152.0,0.00025119,3]
[374123345,1753213859594,-152.0,0.00025119,3]
[374123346,1753213859603,-152.0,0.00025119,3]
[374123347,1753213859613,-152.0,0.00025119,3]
[374123348,1753213859622,-152.0,0.00025119,3]
[374123349,1753213859631,-152.0,0.00025119,3]
[374123350,1753213859641,-152.0,0.00025119,3]
[374123351,1753213859650,-152.0,0.00025119,3]
[374123352,1753213859660,-286.67439591,0.00025119,3]
[374123353,1753213859669,-324.0,0.00025119,3]
[374123354,1753213859679,-324.0,0.00025119,3]
[374123355,1753213859688,-324.0,0.00025119,3]
[374123356,1753213859697,-328.82415867,0.00025119,3]
[374123357,1753213859706,-151.0,0.00025121,7]
[374123358,1753213859716,-151.0,0.00025121,7]
[374123359,1753213859725,-151.0,0.00025121,7]
[374123360,1753213859735,-151.0,0.00025121,7]
[374123361,1753213859744,-151.0,0.00025121,7]
[374123362,1753213859754,-600.0,0.00025121,30]
[374123363,1753213859763,-151.0,0.00025121,7]
[374123364,1753213859772,-221.485304,0.00025121,7]
[374123365,1753213859781,-670.859317,0.00025121,7]
[374123366,1753213859791,-670.859317,0.00025121,7]
[374123367,1753213859800,-670.859317,0.00025121,7]
[374123368,1753213859810,-670.859317,0.00025121,7]
[374123369,1753213859819,-670.859317,0.00025121,7]
[374123370,1753213859828,-670.859317,0.00025121,7]
[374123371,1753213859837,-670.859317,0.00025121,7]
[374123372,1753213859846,-670.859317,0.00025121,7]
[374123373,1753213859856,-670.859317,0.00025121,7]
[374123374,1753213859865,-670.859317,0.00025121,7]
[374123375,1753213859875,-670.859317,0.00025121,7]
[374123376,1753213859884,-670.859317,0.00025121,7]
[374123377,1753213859893,-670.859317,0.00025121,7]
[374123378,1753213859903,-670.859317,0.00025121,7]
[374123379,1753213859915,-670.859317,0.00025121,7]
[374123380,1753213859924,-670.859317,0.00025121,7]
[374123381,1753213859934,-670.859317,0.00025121,7]
[374123382,1753213859943,-670.859311,0.00025121,7]
[374123383,1753213859952,-151.0,0.00025122,7]
[374123384,1753213859963,-151.0,0.00025122,7]
[374123385,1753213859973,-151.0,0.00025122,7]
[374123386,1753213859983,-151.0,0.00025122,7]
[374123387,1753213859993,-151.0,0.00025122,7]
[374123388,1753213860003,-151.0,0.00025122,7]
[374123389,1753213860012,-239.15511,0.00025122,7]
[374123390,1753213860022,-151.0,0.00025122,7]
[374123391,1753213860031,-151.0,0.00025122,7]
[374123392,1753213860041,-246.622516,0.00025122,7]
[374123393,1753213860051,-151.0,0.00025122,7]
[374123394,1753213860061,-152.553763,0.00025122,7]
[374123395,1753213860071,-151.0,0.00025122,7]
[374123396,1753213860081,-151.0,0.00025122,7]
[374123397,1753213860090,-151.0,0.00025122,7]
[374123398,1753213860100,-241.664933,0.00025122,7]
[374123399,1753213860110,-151.0,0.00025122,7]
[374123400,1753213860119,-151.0,0.00025122,7]
[374123401,1753213860128,-151.0,0.00025122,7]
[374123402,1753213860138,-151.0,0.00025122,7]
[374123403,1753213860148,-151.0,0.00025122,7]
[374123404,1753213860158,-151.0,0.00025122,7]
[374123405,1753213860168,-151.0,0.00025122,7]
[374123406,1753213860177,-151.0,0.00025122,7]
[374123407,1753213860187,-151.0,0.00025122,7]
[374123408,1753213860197,-151.0,0.00025122,7]
[374123409,1753213860206,-151.0,0.00025122,7]
[374123410,1753213860217,-151.0,0.00025122,7]
[374123411,1753213860227,-151.0,0.00025122,7]
[374123412,1753213860236,-197.268608,0.00025122,7]
[374123413,1753213860245,-197.268608,0.00025122,7]
[374123414,1753213860254,-197.268608,0.00025122,7]
[374123415,1753213860263,-197.268608,0.00025122,7]
[374123416,1753213860273,-197.268608,0.00025122,7]
[374123417,1753213860282,-197.268608,0.00025122,7]
[374123418,1753213860292,-197.268608,0.00025122,7]
[374123419,1753213860301,-197.268608,0.00025122,7]
[374123420,1753213860311,-197.268608,0.00025122,7]
[374123421,1753213860320,-197.268608,0.00025122,7]
[374123422,1753213860329,-197.268608,0.00025122,7]
[374123423,1753213860338,-197.268608,0.00025122,7]
[374123424,1753213860347,-197.268608,0.00025122,7]
[374123425,1753213860356,-197.268608,0.00025122,7]
[374123426,1753213860366,-197.268608,0.00025122,7]
[374123427,1753213860375,-197.268608,0.00025122,7]
[374123428,1753213860384,-197.268608,0.00025122,7]
[374123429,1753213860393,-197.2686,0.00025122,7]
[374123430,1753213860402,-151.0,0.00025122,7]
[374123431,1753213860411,-151.0,0.00025122,7]
[374123432,1753213860420,-151.0,0.00025122,7]
[374123433,1753213860430,-151.0,0.00025122,7]
[374123434,1753213860440,-151.0,0.00025122,7]
[374123435,1753213860450,-151.0,0.00025122,7]
[374123436,1753213860459,-151.0,0.00025122,7]
[374123437,1753213860472,-151.0,0.00025122,7]
[374123438,1753213860482,-151.0,0.00025122,7]
[374123439,1753213860492,-181.039421,0.00025122,7]
[374123440,1753213860502,-181.039421,0.00025122,7]
[374123441,1753213860511,-181.039421,0.00025122,7]
[374123442,1753213860521,-181.039421,0.00025122,7]
[374123443,1753213860530,-181.039421,0.00025122,7]
[374123444,1753213860540,-181.039421,0.00025122,7]
[374123445,1753213860549,-181.039421,0.00025122,7]
[374123446,1753213860559,-181.039421,0.00025122,7]
[374123447,1753213860568,-181.039421,0.00025122,7]
[374123448,1753213860578,-181.039421,0.00025122,7]
[374123449,1753213860588,-181.039421,0.00025122,7]
[374123450,1753213860598,-181.039421,0.00025122,7]
[374123451,1753213860607,-181.039421,0.00025122,7]
[374123452,1753213860617,-181.039421,0.00025122,7]
[374123453,1753213860626,-181.039421,0.00025122,7]
[374123454,1753213860636,-181.039421,0.00025122,7]
[374123455,1753213860645,-181.039421,0.00025122,7]
[374123456,1753213860654,-181.039414,0.00025122,7]
[374123457,1753213860664,-1000.0,0.00025124,2]
[374123458,1753213860673,-800.0,0.00025126,2]
[374123459,1753213860683,-151.0,0.00025133,7]
[374123460,1753213860693,-151.0,0.00025133,7]
[374123461,1753213860703,-151.0,0.00025133,7]
[374123462,1753213860715,-151.0,0.00025133,7]
[374123463,1753213860724,-160.645502,0.00025133,7]
[374123464,1753213860734,-151.0,0.00025133,7]
[374123465,1753213860745,-151.0,0.00025133,7]
[374123466,1753213860757,-151.0,0.00025133,7]
[374123467,1753213860766,-151.0,0.00025133,7]
[374123468,1753213860775,-151.0,0.00025133,7]
[374123469,1753213860784,-151.0,0.00025133,7]
[374123470,1753213860793,-151.0,0.00025133,7]
[374123471,1753213860802,-151.0,0.00025133,7]
[374123472,1753213860811,-151.0,0.00025133,7]
[374123473,1753213860821,-151.0,0.00025133,7]
[374123474,1753213860830,-151.0,0.00025133,7]
[374123475,1753213860840,-151.0,0.00025133,7]
[374123476,1753213860849,-151.0,0.00025133,7]
[374123477,1753213860858,-151.0,0.00025133,7]
[374123478,1753213860868,-151.0,0.00025133,7]
[374123479,1753213860882,-151.0,0.00025133,7]
[374123480,1753213860900,-151.0,0.00025133,7]
[374123481,1753213860913,-151.0,0.00025133,7]
[374123482,1753213860926,-196.792374,0.00025133,7]
[374123483,1753213860937,-154.622469,0.00025133,7]
[374123484,1753213860948,-154.622469,0.00025133,7]
[374123485,1753213860957,-154.622469,0.00025133,7]
[374123486,1753213860968,-154.622469,0.00025133,7]
[374123487,1753213860978,-154.622469,0.00025133,7]
[374123488,1753213860987,-154.622469,0.00025133,7]
[374123489,1753213860997,-154.622469,0.00025133,7]
[374123490,1753213861006,-154.622469,0.00025133,7]
[374123491,1753213861015,-154.622469,0.00025133,7]
[374123492,1753213861025,-154.622469,0.00025133,7]
[374123493,1753213861034,-154.622469,0.00025133,7]
[374123494,1753213861043,-154.622469,0.00025133,7]
[374123495,1753213861124,-154.622469,0.00025133,7]
[374123496,1753213861133,-154.622469,0.00025133,7]
[374123497,1753213861142,-154.622469,0.00025133,7]
[374123498,1753213861151,-154.622471,0.00025133,7]
[374123499,1753213861160,-151.0,0.00025133,7]
[374123500,1753213861169,-151.0,0.00025133,7]
[374123501,1753213861178,-151.0,0.00025133,7]
[374123502,1753213861188,-151.0,0.00025133,7]
[374123503,1753213861197,-151.0,0.00025133,7]
[374123504,1753213861206,-224.543395,0.00025133,7]
[374123505,1753213861218,-151.0,0.00025133,7]
[374123506,1753213861228,-224.543395,0.00025133,7]
[374123507,1753213861237,-151.0,0.00025133,7]
[374123508,1753213861247,-224.543395,0.00025133,7]
[374123509,1753213861256,-151.0,0.00025133,7]
[374123510,1753213861266,-224.543395,0.00025133,7]
[374123511,1753213861275,-224.543395,0.00025133,7]
[374123512,1753213861284,-151.0,0.00025133,7]
[374123513,1753213861294,-224.543395,0.00025133,7]
[374123514,1753213861303,-224.543395,0.00025133,7]
[374123515,1753213861313,-278.105964,0.00025133,7]
[374123516,1753213861323,-224.543395,0.00025133,7]
[374123517,1753213861332,-224.543395,0.00025133,7]
[374123518,1753213861341,-224.543395,0.00025133,7]
[374123519,1753213861351,-224.543395,0.00025133,7]
[374123520,1753213861360,-224.543395,0.00025133,7]
[374123521,1753213861370,-224.543395,0.00025133,7]
[374123522,1753213861379,-224.543395,0.00025133,7]
[374123523,1753213861389,-224.543395,0.00025133,7]
[374123524,1753213861398,-224.543387,0.00025133,7]
[374123525,1753213861407,-151.0,0.00025133,7]
[374123526,1753213861417,-194.764762,0.00025133,7]
[374123527,1753213861426,-939.815287,0.00025133,7]
[374123528,1753213861435,-939.815287,0.00025133,7]
[374123529,1753213861445,-939.815287,0.00025133,7]
[374123530,1753213861454,-939.815287,0.00025133,7]
[374123531,1753213861465,-939.815287,0.00025133,7]
[374123532,1753213861474,-939.815287,0.00025133,7]
[374123533,1753213861483,-939.815287,0.00025133,7]
[374123534,1753213861493,-939.815287,0.00025133,7]
[374123535,1753213861502,-939.815287,0.00025133,7]
[374123536,1753213861511,-939.815287,0.00025133,7]
[374123537,1753213861522,-939.815287,0.00025133,7]
[374123538,1753213861532,-939.815287,0.00025133,7]
[374123539,1753213861541,-939.815287,0.00025133,7]
[374123540,1753213861551,-939.815287,0.00025133,7]
[374123541,1753213861561,-939.815287,0.00025133,7]
[374123542,1753213861570,-939.81527797,0.00025133,7]
[374123543,1753213861579,-151.0,0.00025133,7]
[374123544,1753213861590,-151.0,0.00025133,7]
[374123545,1753213861599,-151.0,0.00025133,7]
[374123546,1753213861609,-151.0,0.00025133,7]
[374123547,1753213861618,-161.94042,0.00025133,7]
[374123548,1753213861627,-151.0,0.00025139,7]
[374123549,1753213861637,-151.0,0.00025139,7]
[374123550,1753213861646,-867.544735,0.00025139,7]
[374123551,1753213861655,-867.544735,0.00025139,7]
[374123552,1753213861665,-867.544735,0.00025139,7]
[374123553,1753213861674,-867.544735,0.00025139,7]